Cogmind - Beta 14 @@@ ROGUE MODE // 2024.09.01 @ 13:21:15 Player: Helstads_dog Result: Destroyed by B-48 Gladiator with Mace Performance ------------- Evolutions (3) 1500 Regions Visited (8) 1600 Robots Destroyed (185) 925 Value Destroyed (6936) 6936 Prototype IDs (9) 180 Alien Tech Used (0) 0 Bonus (3698) 3698 TOTAL SCORE: 14839 Bonus ------- Triggered High Security 500 High Alert Combat Kills 1915 Follower Combat Kills 126 Entered Garrisons 200 Used RIF Installer 1000 Friendly Fire -43 Cogmind --------- Core Integrity 0/700 Matter 22/300 Energy 100/100 System Corruption 37% Temperature Cool (0) Movement Core (700) Ox13 Location -7/Factory Parts ------- > --- POWER (1) -------- (None) > --- PROPULSION (4) --- (None) > --- UTILITY (5) ------ High-capacity Storage Unit > --- WEAPON (3) ------- (None) > --- INVENTORY (20) --- Light Treads Improved Heat Sink Improved Cooling System Force Field Flak Gun Coil Gun Rocket Launcher Peak State ------------ > --- POWER ------------ Improved Fusion Compressor > --- PROPULSION ------- Advanced Treads Improved Medium Treads Heavy Siege Treads > --- UTILITY ---------- Large Storage Unit Long-range Terrain Scanner Improved Targeting Computer Medium Reflective Plating Force Field > --- WEAPON ----------- Heavy Assault Cannon Heavy Gauss Cannon > --- INVENTORY -------- Improved Fusion Compressor Armored Treads Improved Heavy Treads Aluminum Leg Aluminum Leg Improved Cooling System Improved Light Armor Plating Coil Gun Coil Gun Coil Gun Coil Gun Heavy Assault Cannon Rocket Launcher [Rating: 67] Favorites ----------- Power Improved Ion Engine Engine Improved Ion Engine Power Core Improved Fusion Compressor Propulsion Armored Treads Treads Armored Treads Leg Aluminum Leg Utility Large Storage Unit Device Force Field Storage Large Storage Unit Processor Improved Targeting Computer Hackware Hacking Suite Protection Hardened Medium Armor Plating Weapon Assault Rifle Energy Gun Medium Laser Ballistic Gun Assault Rifle Ballistic Cannon Heavy Assault Cannon Launcher Rocket Launcher Special Weapon Plasma Cutter Special Melee Weapon Improved Datajack Build | -11 -10 -10 -10 -9 -8 -7 -7 -7 ------- Run | Yrd Mat Min Exi Min Mat Fac Gar Fac Slots Evolved 6 | . . . . . 4 2 . . Power . | . . . . . . . . . Propulsion 2 | . . . . . 2 . . . Utility 3 | . . . . . 1 2 . . Weapon 1 | . . . . . 1 . . . Parts Attached 187 | 6 16 7 . 11 57 29 36 25 Power 12 | 1 1 2 . 1 2 . 3 2 Engine 10 | 1 1 2 . 1 2 . 2 1 Core 2 | . . . . . . . 1 1 Reactor . | . . . . . . . . . Propulsion 52 | 2 6 1 . 3 19 5 10 6 Treads 47 | . 6 1 . 3 19 5 9 4 Leg 5 | 2 . . . . . . 1 2 Wheel . | . . . . . . . . . Hover . | . . . . . . . . . Flight . | . . . . . . . . . Utility 53 | 1 2 . . . 11 16 12 11 Device 20 | . . . . . 4 4 5 7 Storage 5 | 1 1 . . . 2 . . 1 Processor 6 | . 1 . . . . 4 1 . Hackware 1 | . . . . . . . . 1 Protection 21 | . . . . . 5 8 6 2 Artifact . | . . . . . . . . . Weapon 70 | 2 7 4 . 7 25 8 11 6 Energy Gun 16 | 1 . 1 . 5 7 2 . . Energy Cannon . | . . . . . . . . . Ballistic Gun 29 | 1 3 1 . 2 9 2 7 4 Ballistic Cannon 9 | . 2 . . . . 3 2 2 Launcher 12 | . 2 2 . . 5 1 2 . Special Weapon 1 | . . . . . 1 . . . Impact Weapon . | . . . . . . . . . Slashing Weapon . | . . . . . . . . . Piercing Weapon . | . . . . . . . . . Special Melee Weapon 3 | . . . . . 3 . . . Unidentified Prototypes 1 | . . . . . 1 . . . Parts Lost 40 | . . 2 . 4 3 4 6 21 Power 1 | . . . . . . . . 1 Propulsion 18 | . . 1 . 2 1 2 4 8 Utility 9 | . . . . . 1 1 1 6 Weapon 12 | . . 1 . 2 1 1 1 6 Highest Loss Streak 14 | . . 2 . 4 2 2 2 14 To Critical Strikes 5 | . . . . . . . . 5 Average Slot Usage (%) 94 | . 97 99 72 98 99 99 93 83 Engine 8 | . 14 14 14 14 9 7 5 4 Treads 28 | . 26 28 28 27 35 29 25 20 Leg 1 | . 1 . . . . . 3 . Device 7 | . . . . . 9 13 8 14 Storage 9 | . 14 14 14 14 9 7 7 7 Processor 7 | . 12 14 14 14 . 7 8 3 Protection 6 | . . . . . 9 7 11 6 Energy Gun 6 | . . 5 . 15 18 9 . . Ballistic Gun 9 | . 17 13 . 11 8 6 10 6 Ballistic Cannon 4 | . 9 8 . . . 5 6 10 Peak Build Rating 67 | 6 8 9 8 11 34 41 67 65 Average Rating 30 | 4 7 8 6 9 27 38 45 59 On Entrance 19 | . 6 8 8 6 11 34 40 63 Naked Turns . | . . . . . . . . . Heaviest Build 93 | 12 30 30 27 33 46 62 69 93 Greatest Support 145 | 20 40 40 40 40 82 82 122 145 Greatest Overweight (x) 9 | 1 9 . . . . . 1 1 Average Overweight (x) . | . . . . . . . . . Largest Inventory Capacity 20 | 8 15 15 15 15 15 15 15 20 Average Capacity 15 | 7 14 15 15 15 15 15 15 18 Most Carried 16 | 4 15 15 15 15 15 15 15 16 Average Carried 13 | 2 11 14 14 13 14 13 14 13 Final Capacity 20 | 8 15 15 15 15 15 15 15 20 Final Carried 15 | 4 15 15 15 14 15 12 14 7 Class Distribution -------------------- 49% | Tank 28% | Mutant 18% | Scavenger-Tank Dominant Class ---------------- Mutant | -10/Materials Mutant | -10/Mines Mutant | -10/Exiles Scavenger-Mutant | -9/Mines Tank | -8/Materials Tank | -7/Factory Tank | -7/Garrison Tank | -7/Factory Resources | -11 -10 -10 -10 -9 -8 -7 -7 -7 ----------- Run | Yrd Mat Min Exi Min Mat Fac Gar Fac Matter Collected 6323 | 189 630 245 128 144 1266 694 2262 765 Remotely . | . . . . . . . . . Salvage Created 6560 | . 454 219 . 148 2590 806 1475 868 Parts 372 | . 32 24 . 17 145 34 69 51 Haulers Intercepted 5 | . 2 . . . 3 . . . Recyclers Shooed 6 | . . . . 2 2 2 . . Parts Field Recycled 29 | . . . . . . . . 29 Retrieved Matter 411 | . . . . . . . . 411 Parts Self-Destructed . | . . . . . . . . . Prevented . | . . . . . . . . . Kills | -11 -10 -10 -10 -9 -8 -7 -7 -7 ------- Run | Yrd Mat Min Exi Min Mat Fac Gar Fac Combat Hostiles Destroyed 146 | . 10 13 . 6 45 16 39 17 Guns 102 | . 4 7 . 6 42 11 26 6 Cannons 35 | . 6 3 . . . 4 11 11 AOE 9 | . . 3 . . 3 1 2 . Classes Destroyed 18 | . 5 . . 1 8 1 1 2 Worker 5 | . 1 1 . . 2 . . 1 Builder 5 | . . . . . 3 . . 2 Tunneler 1 | . . . . . 1 . . . Hauler 5 | . 2 . . . 3 . . . Recycler 6 | . . . . . 3 2 . 1 Mechanic 2 | . . . . . . . . 2 Operator 3 | . . . . . 2 . . 1 Watcher 12 | . 3 . . . 5 3 1 . Swarmer 40 | . 3 9 . 4 7 4 12 1 Grunt 62 | . 7 4 . . 19 6 16 10 Brawler 5 | . . . . . 2 1 2 . Duelist 2 | . . . . . 1 . . 1 Protector 1 | . . . . . . . . 1 Sentry 23 | . . . . 2 12 2 6 1 Hunter 6 | . . . . . 3 1 1 1 Programmer 4 | . . . . . . 1 1 2 Heavy 1 | . . . . . 1 . . . Behemoth 1 | . . . . . . . 1 . Thug 1 | . . . . . . 1 . . Best Kill Streak 11 | . 8 6 . 4 6 5 10 11 Combat Bots Only 10 | . 7 6 . 4 4 5 10 9 Max Kills in Single Turn 4 | . 2 1 . 1 4 2 2 2 Gunslinging 1 | . . . . . . . 1 . Exploded 2 | . . 1 . . 1 1 2 . Melee . | . . . . . . . . . Uniques/NPCs Destroyed . | . . . . . . . . . Combat | -11 -10 -10 -10 -9 -8 -7 -7 -7 -------- Run | Yrd Mat Min Exi Min Mat Fac Gar Fac Hostile Shots Fired 1311 | . 34 60 . 37 213 255 395 317 Missed 394 | . 13 19 . 6 55 85 137 79 Damage Taken 11779 | . 272 411 . 366 2307 1779 2480 4164 Core 1124 | . 38 146 . 48 152 96 118 526 Absorbed by Shields 792 | . . . . . . 200 516 76 Ignored by Resistances 153 | . . . . . . . . 153 Regen/Repaired (Parts) 211 | . . . . . . 211 . . Core Remaining (%) 59 | 100 . . . 7 72 . . . Volleys Fired 493 | . 37 32 . 21 158 50 121 74 Largest 3 | . 2 2 . 2 3 3 3 3 Hottest 156 | . 55 83 . 88 156 135 119 121 Shots Fired 1226 | . 74 64 . 36 433 137 307 175 Gun 983 | . 49 39 . 36 412 97 243 107 Cannon 208 | . 23 18 . . . 38 61 68 Launcher 25 | . 2 7 . . 11 2 3 . Special 10 | . . . . . 10 . . . Kinetic 789 | . 72 46 . 18 120 80 278 175 Thermal 305 | . . 11 . 18 257 19 . . Explosive 25 | . 2 7 . . 11 2 3 . Electromagnetic 107 | . . . . . 45 36 26 . Robot Hit Streak 20 | . 8 9 . 6 14 18 20 13 Robot Miss Streak 11 | . 3 2 . 9 7 11 6 3 Penetration Max 1 | . . . . . 1 . 1 1 Secondary Targets 11 | . . . . . 5 . 6 . Max Gunslinging Chain 2 | . . . . . 1 . 2 . Shots Hit Robots 813 | . 53 37 . 25 266 98 210 124 Core Hits 443 | . 23 20 . 14 153 75 115 43 Critical Kills . | . . . . . . . . . Critical Parts Destroyed 4 | . . . . . . 1 2 1 Critical Strikes 26 | . 2 . . . 11 2 4 7 Burn 12 | . . . . . 11 1 . . Destroy 4 | . . . . . . 1 2 1 Blast 10 | . 2 . . . . . 2 6 Melee Attacks 6 | . . . . . 6 . . . Impact . | . . . . . . . . . Slashing . | . . . . . . . . . Piercing . | . . . . . . . . . Sneak Attacks 3 | . . . . . 3 . . . Combat Hostiles . | . . . . . . . . . Follow-up Attacks . | . . . . . . . . . Damage Inflicted 17882 | . 765 808 . 272 5108 2064 4763 4102 Guns 11443 | . 449 298 . 272 4038 1366 3162 1858 Cannons 4550 | . 295 160 . . . 434 1417 2244 Explosions 1853 | . 21 336 . . 1048 264 184 . Melee . | . . . . . . . . . Ramming 14 | . . 14 . . . . . . Kinetic 12146 | . 744 382 . 94 1308 1154 4362 4102 Thermal 3678 | . . 76 . 178 2745 495 184 . Explosive 597 | . 21 336 . . 240 . . . Electromagnetic 1447 | . . . . . 815 415 217 . Impact . | . . . . . . . . . Slashing . | . . . . . . . . . Piercing . | . . . . . . . . . Highest Corruption 37 | . 1 1 1 1 3 1 6 37 Average Corruption 3 | . 1 1 1 1 3 1 5 6 Corruption Purged . | . . . . . . . . . Corruption Blocked . | . . . . . . . . . Effects 210 | . 9 4 10 4 48 6 102 27 Message Errors 49 | . 1 . 2 3 14 2 20 7 Matter Fused 37 | . 2 1 1 . 7 1 21 4 Heat Flow Errors 27 | . 2 . 1 . 9 2 10 3 Energy Discharges 25 | . . . 3 . 4 1 15 2 Parts Rejected 3 | . . . . . 1 . 2 . Parts Fused 4 | . . . 1 . 1 . 2 . Data Loss (minor) 30 | . . 2 2 . 4 . 18 4 Data Loss (major) 11 | . 3 . . 1 3 . 3 1 Misfires 8 | . . . . . 1 . 6 1 Alerts 6 | . 1 1 . . 2 . 1 1 Weapon Failures 10 | . . . . . 2 . 4 4 Overload Shots . | . . . . . . . . . Overflow Damage 251 | . . 12 . . 43 6 17 173 Projectiles 183 | . . . . . . . 10 173 Explosions 68 | . . 12 . . 43 6 7 . Melee . | . . . . . . . . . Knockbacks 37 | . 2 3 . . . 2 14 16 Impact . | . . . . . . . . . Kinetic 34 | . 2 3 . . . 2 14 13 Secondary 3 | . . . . . . . . 3 Self-Inflicted Damage 73 | . 40 . . . . 33 . . Shots 2 | . 1 . . . . 1 . . Rammed 1 | . . 1 . . . . . . Targets Rammed 2 | . . 2 . . . . . . Kicked . | . . . . . . . . . Crushed 1 | . . 1 . . . . . . Highest Temperature 531 | . 267 135 173 429 492 300 531 382 Average Temperature 101 | . 67 59 87 172 120 106 77 102 Received Heat Transfer 4075 | . 78 129 . 63 756 565 689 1795 Effects 34 | . . . . 1 16 3 10 4 Shutdowns 6 | . . . . . 4 . 2 . Energy Bleed 3 | . . . . . 1 1 1 . Interference 9 | . . . . . 1 2 4 2 Matter Decay 2 | . . . . . 1 . . 1 Short Circuit 4 | . . . . 1 2 . . 1 Damage (minor) 2 | . . . . . 2 . . . Damage (major) 8 | . . . . . 5 . 3 . Siege Activations . | . . . . . . . . . Robots Corrupted . | . . . . . . . . . Combat Hostiles . | . . . . . . . . . Parts Fried 3 | . . . . . 1 2 . . Impact Corruptions . | . . . . . . . . . Robots Melted . | . . . . . . . . . Combat Hostiles . | . . . . . . . . . Parts Melted 17 | . . . . 1 16 . . . Heat Transferred 8204 | . . 222 . 342 6672 818 150 . Parts Sabotaged . | . . . . . . . . . Parts Stolen . | . . . . . . . . . Parts Stripped . | . . . . . . . . . Power Chain Reactions 10 | . . . . . 6 2 2 . Alert | -11 -10 -10 -10 -9 -8 -7 -7 -7 ------- Run | Yrd Mat Min Exi Min Mat Fac Gar Fac Peak Influence 3110 | . 246 202 . 90 812 494 3110 2088 Initial 1632 | . . . . . 35 353 280 1632 Average 821 | . 73 98 . 12 366 379 1667 1720 Maximum Alert Level 5 | . 1 1 . . 3 2 5 5 Low Security (%) 30 | 100 90 81 . 100 32 . . . Level 1 18 | . 9 18 . . 26 71 5 . Level 2 11 | . . . . . 27 28 6 . Level 3 9 | . . . . . 14 . 17 . Level 4 9 | . . . . . . . 24 15 Level 5 18 | . . . . . . . 45 51 High Security 2 | . . . . . . . . 32 Max Security . | . . . . . . . . . Squads Dispatched 31 | . 1 . . . 15 4 . 11 Investigation . | . . . . . . . . . Extermination 2 | . . . . . . 1 . 1 Reinforcement 9 | . 1 . . . 5 2 . 1 Assault 9 | . . . . . . . . 9 Garrison 11 | . . . . . 10 1 . . Intercept . | . . . . . . . . . Searches Triggered . | . . . . . . . . . Construction Impeded 2 | . . . . . 1 1 . . Haulers Reinforced 1 | . . . . . . . . 1 Active Scanning Responses . | . . . . . . . . . Cargo Convoy Interrupts . | . . . . . . . . . Stealth | -11 -10 -10 -10 -9 -8 -7 -7 -7 --------- Run | Yrd Mat Min Exi Min Mat Fac Gar Fac Distress Signals 5 | . 1 . . . 3 1 . . Communications Jammed 54 | . . . . . . . . 54 Distress Signals 54 | . . . . . . . . 54 Times Spotted 207 | . 16 13 . 6 57 24 45 46 Peak Tracking Total 14 | . 8 3 . 4 6 5 5 14 Tactical Retreats 13 | . 2 . . . 1 1 3 6 Traps | -11 -10 -10 -10 -9 -8 -7 -7 -7 ------- Run | Yrd Mat Min Exi Min Mat Fac Gar Fac Traps Triggered 15 | . 4 . . . . 1 9 1 Indirectly . | . . . . . . . . . Trap Hack Attempts . | . . . . . . . . . Triggered . | . . . . . . . . . Disarmed . | . . . . . . . . . Reprogrammed . | . . . . . . . . . Reused . | . . . . . . . . . Traps Extracted . | . . . . . . . . . Installed . | . . . . . . . . . Triggered . | . . . . . . . . . Machines | -11 -10 -10 -10 -9 -8 -7 -7 -7 ---------- Run | Yrd Mat Min Exi Min Mat Fac Gar Fac Machines Disabled 17 | . 1 1 . . 5 . 7 3 Max in Single Turn 2 | . 1 1 . . 2 . 2 1 Garrison Relay 2 | . . . . . . . 2 . Phase Generator 1 | . . . . . . . 1 . Machines Repaired . | . . . . . . . . . Machines Dismantled . | . . . . . . . . . Machines Sabotaged . | . . . . . . . . . Overloaded Fab Kills . | . . . . . . . . . Hacking | -11 -10 -10 -10 -9 -8 -7 -7 -7 --------- Run | Yrd Mat Min Exi Min Mat Fac Gar Fac Machines Accessed 40 | . 11 . 4 . 13 6 4 2 Terminals 27 | . 8 . . . 10 3 4 2 Fabricators . | . . . . . . . . . Repair Stations 2 | . 1 . . . . 1 . . Recycling Units 4 | . 2 . . . 1 1 . . Scanalyzers 1 | . . . . . 1 . . . Garrison Access 2 | . . . . . 1 1 . . Total Hacks 139 | . 33 . 49 . 31 14 7 5 Successful 82 | . 10 . 49 . 11 9 1 2 Failed 57 | . 23 . . . 20 5 6 3 Catastrophic 13 | . 4 . . . 4 1 4 . Database Lockouts . | . . . . . . . . . Manual 15 | . 5 . 2 . 5 1 2 . Terminals 67 | . 25 . . . 24 6 7 5 Fabricators . | . . . . . . . . . Repair Stations 7 | . 3 . . . . 4 . . Recycling Units 9 | . 5 . . . 2 2 . . Scanalyzers 2 | . . . . . 2 . . . Garrison Access 5 | . . . . . 3 2 . . Terminal Hacks 72 | . 9 . 49 . 9 2 1 2 Record 53 | . . . 49 . 2 . . 2 Robot Analysis 4 | . 4 . . . . . . . Prototype ID Bank 4 | . 3 . . . 1 . . . Open Door 1 | . . . . . . . 1 . Open DSF 1 | . . . . . . 1 . . Emergency Access Points 1 | . 1 . . . . . . . Alert Level 2 | . . . . . 2 . . . Unreport Threat 1 | . . . . . 1 . . . Locate Traps 5 | . 1 . . . 3 1 . . Fabricator Hacks . | . . . . . . . . . Repair Station Hacks 5 | . 1 . . . . 4 . . Scan Component 3 | . 1 . . . . 2 . . Repair 2 | . . . . . . 2 . . Recycling Unit Hacks 1 | . . . . . . 1 . . Retrieve Components 1 | . . . . . . 1 . . Scanalyzer 2 | . . . . . 2 . . . Insert Component 1 | . . . . . 1 . . . Analyze 1 | . . . . . 1 . . . Garrison Access Hacks 2 | . . . . . . 2 . . Unlock Access 1 | . . . . . . 1 . . Coupler Status 1 | . . . . . . 1 . . Unauthorized Hacks . | . . . . . . . . . Terminals . | . . . . . . . . . Fabricators . | . . . . . . . . . Repair Stations . | . . . . . . . . . Recycling Units . | . . . . . . . . . Scanalyzers . | . . . . . . . . . Garrison Access . | . . . . . . . . . Data Cores Recovered . | . . . . . . . . . Used . | . . . . . . . . . Hacking Detections 35 | . 11 . . . 13 6 4 1 Full Trace Events 4 | . . . . . 1 . 3 . Feedback Events . | . . . . . . . . . Feedback Blocked . | . . . . . . . . . Robot Schematics Acquired . | . . . . . . . . . Robots Built . | . . . . . . . . . Authchips . | . . . . . . . . . Time . | . . . . . . . . . Total Robot Build Rating . | . . . . . . . . . Part Schematics Acquired 1 | . . . . . 1 . . . Parts Built . | . . . . . . . . . Authchips . | . . . . . . . . . Time . | . . . . . . . . . Total Part Build Rating . | . . . . . . . . . Parts Repaired 2 | . . . . . . 2 . . Time 76 | . . . . . . 76 . . Parts Recycled . | . . . . . . . . . Recycled Matter . | . . . . . . . . . Retrieved Matter . | . . . . . . . . . Retrieved Components 9 | . . . . . . 9 . . Parts Scanalyzed 1 | . . . . . 1 . . . Part Schematics Acquired 1 | . . . . . 1 . . . Parts Damaged . | . . . . . . . . . Bothacking | -11 -10 -10 -10 -9 -8 -7 -7 -7 ------------ Run | Yrd Mat Min Exi Min Mat Fac Gar Fac Used RIF Installer 2 | . . . . . . . 2 . Hotswap 1 | . . . . . . . 1 . Robots Hacked 3 | . . . . . 3 . . . Non-combat 1 | . . . . . 1 . . . Combat 2 | . . . . . 2 . . . Robot Hacks Applied 4 | . . . . . 4 . . . parse_system 3 | . . . . . 3 . . . no_distress 1 | . . . . . 1 . . . Relay Couplers Released 13 | . . . . . . . 13 . Machine Destruction 10 | . . . . . . . 10 . Programmers 3 | . . . . . . . 3 . Fabnet Peak Effective % . | . . . . . . . . . Robots Rewired 3 | . . . . . . . 3 . Allies Hacked . | . . . . . . . . . Hacks Repelled . | . . . . . . . . . Allies | -11 -10 -10 -10 -9 -8 -7 -7 -7 -------- Run | Yrd Mat Min Exi Min Mat Fac Gar Fac Total Allies 3 | . . . . . . . 3 . Largest Group 3 | . . . . . . . 3 1 Highest-Rated Group 81 | . . . . . . . 81 25 Highest-Rated Ally 31 | . . . . . . . 31 25 Total Orders 1 | . . . . . . . 1 . GUARD 1 | . . . . . . . 1 . Ally Attacks 18 | . . . . . . . 11 7 Total Damage 564 | . . . . . . . 365 199 Kills 5 | . . . . . . . 2 3 Allies Corrupted . | . . . . . . . . . Allies Melted 1 | . . . . . . . 1 . Intel | -11 -10 -10 -10 -9 -8 -7 -7 -7 ------- Run | Yrd Mat Min Exi Min Mat Fac Gar Fac Robot Analysis Total 4 | . 4 . . . . . . . Derelict Logs Recovered 3 | . . 1 . 2 . . . . Drone Launches . | . . . . . . . . . Drone Recoveries . | . . . . . . . . . Exploration | -11 -10 -10 -10 -9 -8 -7 -7 -7 ------------- Run | Yrd Mat Min Exi Min Mat Fac Gar Fac Turns Passed 13058 | 70 1612 873 886 469 2916 1336 3995 901 Spaces Moved 6211 | 49 905 463 553 228 1271 614 1779 349 Core 5 | 4 1 . . . . . . . Treads 6097 | . 840 463 553 228 1271 614 1779 349 Legs 109 | 45 64 . . . . . . . Wheels . | . . . . . . . . . Hover . | . . . . . . . . . Flight . | . . . . . . . . . Fastest Speed 50 | 50 120 160 160 160 160 161 158 160 Average Speed 169 | 116 157 160 160 160 165 168 187 170 Slowest Speed 500 | 120 500 160 160 160 170 170 238 270 Overloaded Moves . | . . . . . . . . . Propulsion Burnouts . | . . . . . . . . . Robots Hopped . | . . . . . . . . . Cave-ins Triggered . | . . . . . . . . . Exploration Rate (%) 59 | 4 99 74 92 52 90 16 97 7 Regions Visited 8 Branch Regions 3 Pre-discovered Areas 1 | . . . 1 . . . . . Known Exits Taken 5 | . 1 1 1 1 . 1 . . Unknown Exits Taken 2 | 1 . . . . 1 . . . Scrap Searched 2 | . . 1 . 1 . . . . Spaces Dug 78 | . . . . . 74 4 . . Terrain Destroyed 356 | . 18 41 . . 133 13 120 31 Melee . | . . . . . . . . . Projectile 39 | . . . . . . 1 8 30 AOE 315 | . 18 41 . . 133 12 111 . Terrain Rammed . | . . . . . . . . . Walls Destroyed . | . . . . . . . . . Machines Disabled . | . . . . . . . . . Actions | -11 -10 -10 -10 -9 -8 -7 -7 -7 --------- Run | Yrd Mat Min Exi Min Mat Fac Gar Fac Total 7716 | 59 1011 529 556 300 1772 807 2195 487 Wait 551 | . 30 19 . 25 197 90 171 19 Move 6204 | 48 904 462 552 227 1270 614 1778 349 Hop . | . . . . . . . . . Pick Up 112 | 5 17 4 . 9 34 11 23 9 Fast Attach 36 | 5 9 . . 2 2 4 10 4 Attach 63 | 1 1 2 . 6 14 11 13 15 Detach 10 | . . . 2 . . 1 3 4 Swap 88 | . 6 5 . 3 41 14 13 6 Drop 117 | . 7 3 2 7 50 12 29 7 Fire 493 | . 37 32 . 21 158 50 121 74 Melee 6 | . . . . . 6 . . . Ram . | . . . . . . . . . Kick . | . . . . . . . . . Crush 2 | . . 2 . . . . . . Escape Stasis 12 | . . . . . . . 12 . Rewire 22 | . . . . . . . 22 . Trap . | . . . . . . . . . Miscellaneous . | . . . . . . . . . Route ------- -11/Scrapyard -10/Materials (discovered 5 exits: *Mat x3 / *Min x2) -10/Mines (discovered 4 exits: *Mat x2 / *Exi / Sub) -10/Exiles (discovered 2 exits: *Min x2) -9/Mines (discovered 2 exits: *Mat x2) -8/Materials (discovered 2 exits: *Fac x2) -7/Factory (discovered 4 exits: *Fac x2 / *Low / Gar) -7/Garrison (discovered 3 exits: *Fac x3) -7/Factory History --------- Turn | Location | Event 7 | -11/Scrapyard | Discovered new exit (range 15) 71 | -11/Scrapyard | Entered Materials 302 | -10/Materials | Build established: Mutant 328 | -10/Materials | Discovered new exit (range 8) 338 | -10/Materials | Identified exit to Mines 531 | -10/Materials | Discovered new exit (range 7) 541 | -10/Materials | Identified exit to Materials 741 | -10/Materials | Destroyed 7 combat bots 903 | -10/Materials | Discovered exit to Materials (range 5) 1190 | -10/Materials | Discovered exit to Mines (range 7) 1519 | -10/Materials | Discovered exit to Materials (range 4) 1683 | -10/Materials | Entered Mines 1715 | -10/Mines | Found a hidden stash of uninstalled traps 1817 | -10/Mines | Received a Rocket Launcher from a helpful Derelict 1848 | -10/Mines | Discovered exit to Materials (range 5) 1998 | -10/Mines | Deemed a non-threat by the Exiles lab entrance 1998 | -10/Mines | Discovered new exit (range 5) 2003 | -10/Mines | Identified exit to Exiles 2088 | -10/Mines | Discovered exit to Materials (range 8) 2207 | -10/Mines | Core integrity fell below 50% 2267 | -10/Mines | Identified exit to Subcaves 2556 | -10/Mines | Entered Exiles 2603 | -10/Exiles | Discovered new exit (range 14) 2622 | -10/Exiles | Identified exit to Mines 2661 | -10/Exiles | Met 8R-AWN 2683 | -10/Exiles | Met EX-HEX 2786 | -10/Exiles | Met EX-DEC 2827 | -10/Exiles | Visited The Gauntlet 3037 | -10/Exiles | Learned location of Zion (-7) 3107 | -10/Exiles | Discovered exit to Mines (range 12) 3198 | -10/Exiles | Met EX-BIN 3442 | -10/Exiles | Entered Mines 3544 | -9/Mines | Learned Materials interactive machine intel 3693 | -9/Mines | Learned Materials terminal intel 3766 | -9/Mines | Lost 4 parts (2n2w) 3818 | -9/Mines | Discovered new exit (range 3) 3820 | -9/Mines | Identified exit to Materials 3861 | -9/Mines | Discovered exit to Materials (range 7) 3870 | -9/Mines | Core integrity fell below 20% 3911 | -9/Mines | Entered Materials 3911 | -8/Materials | Evolved 4 slots: Propulsion x2, Utility x1, Weapon x1 3912 | -8/Materials | Loaded intel: 19 interactive machine locations 3913 | -8/Materials | Loaded intel: 12 terminal locations 4200 | -8/Materials | Build established: Tank 4340 | -8/Materials | Discovered new exit (range 11) 4677 | -8/Materials | Build established: Scavenger-Tank 5373 | -8/Materials | Garrison activated, responded to threat 5898 | -8/Materials | Discovered new exit (range 16) 5901 | -8/Materials | Build established: Tank 5935 | -8/Materials | Garrison activated, responded to threat 6104 | -8/Materials | Garrison activated, responded to threat 6827 | -8/Materials | Entered Factory 6827 | -7/Factory | Evolved 2 slots: Utility x2 6900 | -7/Factory | Discovered new exit (range 5) 7307 | -7/Factory | Identified exit to Lower Caves 7631 | -7/Factory | Discovered new exit (range 13) 7710 | -7/Factory | P-60 Hacker assimilated allied VO-26P(g) 7845 | -7/Factory | Identified exit to Factory 7873 | -7/Factory | Repaired Arm. Treads 7911 | -7/Factory | Repaired Arm. Treads 8048 | -7/Factory | Discovered exit to Factory (range 14) 8099 | -7/Factory | Garrison activated, responded to threat 8163 | -7/Factory | Identified exit to Garrison 8163 | -7/Factory | Entered Garrison 8375 | -7/Garrison | Triggered checkpoint 8463 | -7/Garrison | Triggered checkpoint 8603 | -7/Garrison | Triggered checkpoint 8654 | -7/Garrison | Triggered checkpoint 8744 | -7/Garrison | Destroyed 10 combat bots 8881 | -7/Garrison | Triggered checkpoint 8935 | -7/Garrison | Installed Relay Interface Framework 8999 | -7/Garrison | Discovered new exit (range 9) 9113 | -7/Garrison | Triggered checkpoint 9375 | -7/Garrison | Discovered new exit (range 14) 9479 | -7/Garrison | Build established: Scavenger-Tank 9491 | -7/Garrison | Triggered checkpoint 9531 | -7/Garrison | Garrison Relay disabled 9716 | -7/Garrison | Discovered new exit (range 10) 9849 | -7/Garrison | Triggered checkpoint 10352 | -7/Garrison | Phase Generator disabled 10756 | -7/Garrison | Expanded RIF knowledge: Hotswap 11051 | -7/Garrison | Identified exit to Factory 11094 | -7/Garrison | Build established: Tank 11223 | -7/Garrison | Garrison Relay disabled 11411 | -7/Garrison | Spotted B-75 Beast 11437 | -7/Garrison | Destroyed B-75 Beast 12158 | -7/Garrison | Entered Factory 12158 | -7/Factory | Accompanied by 1 ally 12558 | -7/Factory | First assault squad dispatched 12739 | -7/Factory | Core integrity fell below 50% 12768 | -7/Factory | High security lockdown imminent 12789 | -7/Factory | Destroyed 9 combat bots 12791 | -7/Factory | Lost 6 parts (4n1u1w) 12848 | -7/Factory | High security lockdown engaged 13024 | -7/Factory | System corruption reached 10% 13043 | -7/Factory | Core integrity fell below 20% 13054 | -7/Factory | System corruption reached 30% 13059 | -7/Factory | Destroyed by B-48 Gladiator with Mace Last Messages --------------- 13045_ Hvy. Gauss Cannon destroyed. 13045_ System corrupted by crushing effect (+1). 13047_ Slug penetrates B-48 Gladiator. 13047_ Slug penetrates Earth. 13048_ Imp. Heat Sink destroyed. 13048_ System corrupted by crushing effect (+5). 13048_ Critical hit (Smash). 13048_ Lgt. Treads destroyed. 13048_ System corrupted by crushing effect (+1). 13049_ Slug penetrates B-48 Gladiator. 13051_ Slug penetrates Earth. 13052_ Critical hit (Burn: +37). 13053_ Slug penetrates B-48 Gladiator. 13053_ Nuclear Core destroyed. 13053_ System corrupted by crushing effect (+4). 13056_ Critical hit (Smash). 13056_ Imp. Heavy Treads destroyed. 13056_ System corrupted by crushing effect (+2). 13057_ Coil Gun destroyed. 13057_ System corrupted by crushing effect (+4). Map ----- +----------------------------------------------------+ | ?????????????????????????????????????????????????? | | ?????????????????????????????????????????????????? | | ?????????????????????????????????????????????????? | | ?????????????????????????????????????????????????? | | ?????????????????????????????????????????????????? | | ?????????????????????????????????????????????????? | | ?????????????????????????????????????????????????? | | ?????????????????????????????????????????????????? | | ?????????????????????????????????????????????????? | | ????????????????????????###??????????????????????? | | ???????????????????????? ??????????????????????? | | ???????????????????????? ??????????????????????? | | ???????????????????????? ??????????????????????? | | ???????????????????????? !=??????????????????????? | | ????????????????????????!%=??????????????????????? | | ????????????????????????#%#??????????????????????? | | ????????????????????????#=#??????????????????????? | | ?????????????????##?????#%#??????????????????????? | | ?????????????????# #????#[#??????????????????????? | | ??????????????????# #???# #??????????????????????? | | ???????????????????# #??#!#??????????????????????? | | ????????????????????# #?#i#??????????????????????? | | ?????????????????????# ##%#????????###????#??????? | | ?????????????????????? ;#!##??????? ? ?? #??????? | | ?????????##+############b=*#??????? ? ? #??????? | | ??????? !%b@=#?????? ?? #??????? | | ??????????# ggb[ ######? ??% ]?????? ?? | | ??????????# %##############+#### ?? | | ??????????+ % % % % ^^ ??? | | ??????????# #### #;######### %% ##########? | | ???????????????# ?##???????## * %# ? | | ???????????????#???????????## + ?? | | ???????????????????????????##= * ! # ?? | | ????????????????????????????# * # ???? | | ????????????????????????????# # """ "???? | | ????????????????????????????# % " """ ""??? | | ????????????????????????????# % " """ ""??? | | ????????????????????? # # | | ?? ??????????????? ##+#####+########### | | ? ???????????? """ # """"" ### | | ? ????????????????""" # """"" #?# """ | | ? ????????????????""" # """ ### """ | | ? ???????????????? # ### """ | | ? ????????????????? # + + | | ? #??????????????? # ### """ | | ? #??????????????? # #?# """ | | # #??????????????? " F" # #?# """ | | # #???????????????? """" #######+###?# | | #?????????????????? ###########?# ##########+# | | +?????????????????? # ### | +----------------------------------------------------+ Best States ------------- Heat Dissipation 61 Energy Generation 35 Energy Capacity 290 Matter Stores 300 Matter Capacity 300 Sight Range 16 Robot Scan Range 15 Terrain Scan Range 24 Terrain Scan Density 10 Jamming Range 12 Armor Coverage 675 Resistance: TH 15 Evasion (%) 55 Targeting Accuracy 6 Recoil Reduction 4 Offensive Hacking 10 Item Schematics ----------------- Hrd. Medium Armor Plating | -8/Materials | Scanalyzed Robot Schematics ------------------ None Fabricated ------------ Nothing Alien Tech Used ----------------- None Achievements -------------- None Challenges ------------ None Game ------ Seed StorageCarbideDiverter Manual? 0 Play Time 04:13:44 Cumulative 19.7 hours Start 2024.09.01 @ 07:06:27 End 2024.09.01 @ 13:21:15 Sessions 1 Manual Loads 0 Difficulty Rogue Special Mode None Game No. 14 Rogue 14 Adventurer 0 Explorer 0 Win Type - Total 0 Types 0/0/0/0/0/0/0/0/0 Lore% 11 Gallery% 14 Achievement% 30 Wizard Run 0 Options --------- Layout 0 ASCII 0 Keyboard 0 Movement Mouse Keybinds 0 Fullscreen 1 Font 16/SmallcapsGlow Map View 37x27 Zoom Use 84% Tactical HUD 1 Map Filters NONE Filters NONE Steam 1 RUN: c10c54bc-7b76-4377-a52a-184bfa700b5c